[Event "1st Kallai Gabor Memorial 2022"]
[Site "Budapest"]
[Date "2022.11.30"]
[Round "8.5"]
[White "Borhy, Marcell"]
[Black "Horvath, Csaba"]
[Result "1/2-1/2"]
[ECO "A05"]
[WhiteElo "2407"]
[BlackElo "2502"]
[Annotator "TA"]
[PlyCount "33"]
[EventDate "2022.11.28"]
[EventType "tourn"]
[EventCountry "HUN"]
[SourceTitle "playchess.com"]
[Source "ChessBase"]
[SourceQuality "1"]
[TimeControl "1500+5"]

{[%evp 12,33,15,20,32,36,36,12,15,13,19,12,18,5,0,0,0,-10,-9,-9,0,0,0,0]} 1. Nf3 {[%emt 0:00:08]} Nf6 {[%emt 0:00:07]} 2. c4 {[%emt 0:00:02]} b6 {[%emt 0:00:19]} 3. g3 {[%emt 0:00:03]} Bb7 4. Bg2 {[%emt 0:00:02]} g6 {[%emt 0:00:22]} 5. O-O {[%emt 0:00:08]} Bg7 {[%emt 0:00:01]} 6. d4 {[%emt 0:00:12]} O-O 7. Qc2 {[%emt 0:01:02] 7.Re1 is the recent fashion.} Na6 {[%emt 0:01:09] A50: Queen's Fianchetto Defence (1 d4 Nf6 2 c4 b6).} 8. Nc3 {[%emt 0:00:42] [#]} d5 $146 {Against e4} ({Predecessor:} 8... c5 9. d5 d6 10. e4 Bc8 11. h3 Nc7 12. Re1 Nd7 13. Bf4 f6 14. Be3 Rb8 15. Bf1 {1-0 (44) Munoz Galvez,J (2254)-Alvarez,A (1943) Medellin 2011}) 9. cxd5 {aiming for e4.} Nb4 {[%emt 0:00:43] Inhibits e4. The position is equal.} 10. Qb3 {[%emt 0:01:44]} Nbxd5 {[%emt 0:00:04]} 11. Rd1 {[%emt 0:03:13]} Qc8 12. Bg5 Nxc3 {[%emt 0:03:06]} 13. bxc3 {[%emt 0:00:11]} c5 14. Qa3 Ne4 {[%emt 0:01:21]} 15. Bf4 {[%emt 0:01:35]} e6 {[%emt 0:00:49]} 16. Rac1 {[%emt 0:01:14]} Rd8 {[%emt 0:00:36]} 17. Ng5 {Weighted Error Value: White=0.06 (flawless) /Black=0.02 (flawless)} 1/2-1/2

[Event "1st Kallai Gabor Memorial 2022"]
[Site "Budapest"]
[Date "2022.11.30"]
[Round "9.1"]
[White "Kozak, Adam"]
[Black "Bjerre, Jonas Buhl"]
[Result "1/2-1/2"]
[ECO "E47"]
[WhiteElo "2538"]
[BlackElo "2622"]
[Annotator "TA"]
[PlyCount "124"]
[EventDate "2022.11.28"]
[EventType "tourn"]
[EventCountry "HUN"]
[SourceTitle "playchess.com"]
[Source "ChessBase"]
[SourceQuality "1"]
[TimeControl "1500+5"]

{[%evp 19,124,4,28,16,49,45,58,45,64,0,78,79,71,72,59,59,72,72,72,87,122,101,159,159,149,153,156,147,154,156,151,156,154,151,158,144,143,108,98,120,97,97,234,234,205,190,265,250,250,250,237,166,188,187,225,209,217,193,279,260,357,204,250,237,348,346,318,343,332,307,373,370,413,408,387,395,391,385,452,429,520,485,852,850,721,708,503,162,162,162,162,162,162,162,162,162,162,162,162,162,162,162,162,162,162,0,162]} 1. d4 {[%emt 0:00:06]} Nf6 {[%emt 0:00:08]} 2. c4 {[%emt 0:00:02]} e6 {[%emt 0:00:03]} 3. Nc3 {[%emt 0:00:06]} Bb4 {[%emt 0:00:03]} 4. e3 {[%emt 0:00:01]} O-O {[%emt 0:00:03]} 5. Bd3 {[%emt 0:00:03]} c5 {[%emt 0:00:12]} 6. Nge2 {[%emt 0:00:02]} cxd4 {[%emt 0:00:46]} 7. exd4 {[%emt 0:00:03]} d5 {[%emt 0:00:01]} 8. cxd5 {[%emt 0:00:02]} Nxd5 {[%emt 0:00:07]} 9. O-O {[%emt 0:00:05]} Nc6 {[%emt 0:00:12]} 10. a3 {[%emt 0:00:06]} Be7 {[%emt 0:00:44]} 11. Re1 {[%emt 0:01:42] 11.Nxd5 is setting a new trend. E48: Nimzo-Indian: Rubinstein: 5 Bd3 d5 including 6 Ne2, but excluding 6 a3.} Nxc3 {[%emt 0:00:58]} 12. bxc3 {[%emt 0:00:10]} b6 {[%emt 0:00:09] [#]} 13. Nf4 $146 {[%emt 0:02:11] Qh5 is the strong threat. White is slightly better.} ({Predecessor:} 13. Ng3 Bb7 14. Qh5 g6 15. Qh3 Bf6 16. Ne4 Bg7 17. Ng5 h6 18. Nxe6 fxe6 19. Qxe6+ {0-1 (107) Saydaliev,S (2366)-Vokhidov,S (2521) Chess.com INT 2021}) 13... g6 {[%emt 0:01:22] Inhibits Qh5.} 14. Qe2 {[%emt 0:03:09]} (14. Qg4 $14) 14... Bf6 {[%emt 0:01:12] [#]} (14... Bb7 $11 {remains equal.}) 15. Nh5 $1 {[%emt 0:01:18][%cal Oe2f3] Black must now prevent Qf3!} Bh8 {[%emt 0:01:11]} 16. Bh6 $1 $36 {[%emt 0:01:01][%mdl 2048] Black is under strong pressure.} Re8 {[%emt 0:00:13]} 17. Qg4 {[%emt 0:02:33] Prevents Qh4.} e5 {[%emt 0:02:45]} (17... Ne5 $2 18. Rxe5 (18. dxe5 Qxd3 19. Rad1 Qf5 $16) 18... Bd7 19. Qf4 $1 $18) 18. Qg3 {[%emt 0:00:44]} ({Reject} 18. Qf3 $6 Bb7 19. Bc4 Qe7 $11) 18... Bb7 {[%emt 0:00:56]} 19. Bg5 $1 {[%emt 0:01:38]} Qd6 {[%emt 0:03:05]} 20. Rad1 {[%emt 0:00:12]} Qxa3 {[%emt 0:00:32]} (20... gxh5 $2 21. Bh6+ $18) (20... Na5 $142) 21. d5 $1 $16 {[%emt 0:07:17]} Ne7 {[%emt 0:00:08][%cal Oe7d5]} 22. d6 {[%emt 0:00:22]} ({Much less strong is} 22. c4 Qd6 $16) 22... Qxd6 {[%emt 0:01:19] Strongly threatening ...Qe6.} 23. Bb5 $1 {[%emt 0:00:01][%csl LRd6,LRe8][%mdl 64] Discovered Attack} Qe6 {[%emt 0:00:32] Hoping for ...Bc6.} 24. Bd7 {[%emt 0:00:16] Inhibits Bc6. White has more active pieces.} Nf5 {[%emt 0:00:25] [#]} 25. Qh3 {[%emt 0:00:36]} Qc4 {[%emt 0:00:37] [#]} 26. Nf6+ $1 {[%emt 0:00:22]} Bxf6 {[%emt 0:00:58]} 27. Bxf6 {[%emt 0:00:02][%cal Od7f5]} Re6 {[%emt 0:01:40]} 28. Bxe6 {[%emt 0:02:38] The board is on fire.} Qxe6 {[%emt 0:00:01]} 29. Bxe5 {[%emt 0:00:01]} Qc6 {[%emt 0:00:10]} 30. Qg4 {[%emt 0:00:30]} h5 {[%emt 0:00:59]} (30... Nh6 $16 {was worth a try.} 31. Qf3 Qxf3 32. gxf3 Bxf3) 31. Qg5 $18 {[%emt 0:00:09]} Kh7 {[%emt 0:01:02]} 32. f3 {[%emt 0:00:05][%cal Bf2f3,Bf3g4][%mdl 32]} a5 {[%emt 0:01:28]} (32... Qc5+ $142 33. Bd4 (33. Kh1 Bd5 $16) 33... Nxd4 34. Qxc5 bxc5) 33. Qf6 {[%emt 0:00:03]} Qxf6 {[%emt 0:00:29]} 34. Bxf6 {[%emt 0:00:02]} Bc6 {[%emt 0:00:08]} 35. Kf2 {[%emt 0:00:10]} b5 {[%emt 0:00:28]} 36. g4 {[%emt 0:00:07] Prevents a4.} hxg4 {[%emt 0:00:18]} 37. fxg4 {[%emt 0:00:01]} Nh6 {[%emt 0:00:01]} 38. h3 {[%emt 0:00:01] aiming for Rd6.} Ng8 {[%emt 0:00:02]} (38... a4 {is a better defense.} 39. Rd6 Be8) 39. Be5 {[%emt 0:00:16]} Re8 {[%emt 0:01:29]} 40. Bd4 {[%emt 0:00:05]} (40. g5 $142 Ne7 41. Bf6) 40... Ra8 {[%emt 0:00:04]} 41. Re5 {[%emt 0:00:06]} Nf6 {[%emt 0:00:10]} (41... b4 $142 42. Rc5 Ra6 43. cxb4 axb4) 42. Re7 {[%emt 0:00:02][%csl LRf6,LRf7]} Ne4+ {[%emt 0:00:18]} 43. Ke3 {[%emt 0:00:03]} Nd6 {[%emt 0:00:01]} 44. Kf4 {[%emt 0:00:07]} Kg8 {[%emt 0:00:11]} 45. Rc7 {[%emt 0:00:07]} Be8 {[%emt 0:00:06]} 46. Bf6 {[%emt 0:00:06] Inhibits b4.} Nc4 {[%emt 0:00:03]} 47. Rd8 {[%emt 0:00:05]} Rxd8 {[%emt 0:00:01]} 48. Bxd8 {[%emt 0:00:00][%mdl 4096] Endgame KRB-KBN} a4 {[%emt 0:00:20]} 49. Ra7 {[%emt 0:00:02]} Bc6 {[%emt 0:00:14]} 50. Bf6 {[%emt 0:00:09]} Nb6 {[%emt 0:00:03]} (50... a3 $142 51. Rc7 Be8) 51. Ra6 {[%emt 0:00:08]} Nd5+ {[%emt 0:00:06]} 52. Ke5 {[%emt 0:00:06]} Nxf6 {[%emt 0:00:01]} 53. Kxf6 $2 {[%emt 0:00:05] KR-KB} (53. Rxc6 Nd7+ 54. Kd6) 53... Bd5 {[%emt 0:00:01]} 54. Ra7 {[%emt 0:00:05]} Be6 {[%emt 0:00:05]} 55. Ra8+ {[%emt 0:00:04]} Kh7 {[%emt 0:00:01]} 56. Ra5 {[%emt 0:00:02]} Bc4 {[%emt 0:00:01]} 57. h4 {[%emt 0:00:07]} Kh6 {[%emt 0:00:03]} 58. Ra8 {[%emt 0:00:05][%cal Ra8h8]} Kh7 {[%emt 0:00:01] Against Rh8+} 59. Ra7 {[%emt 0:00:07]} Kg8 {[%emt 0:00:06]} 60. Ra5 {[%emt 0:00:05]} Kh7 {[%emt 0:00:01]} 61. Ra6 {[%emt 0:00:02]} Kg8 {[%emt 0:00:03]} 62. Ra5 {[%emt 0:00:07]} Kh7 {[%emt 0:00:01] Weighted Error Value: White=0.19 (very precise) /Black=0.26 (precise)} 1/2-1/2

[Event "1st Kallai Gabor Memorial 2022"]
[Site "Budapest"]
[Date "2022.11.30"]
[Round "9.2"]
[White "Troff, Kayden"]
[Black "Borhy, Marcell"]
[Result "1-0"]
[ECO "B23"]
[WhiteElo "2483"]
[BlackElo "2407"]
[Annotator "TA"]
[PlyCount "81"]
[EventDate "2022.11.28"]
[EventType "tourn"]
[EventCountry "HUN"]
[SourceTitle "playchess.com"]
[Source "ChessBase"]
[SourceQuality "1"]
[TimeControl "1500+5"]

{[%evp 11,81,0,0,0,0,0,0,-7,0,0,0,0,6,21,55,62,72,71,71,78,97,109,105,54,60,46,45,52,54,59,54,31,34,40,79,86,85,78,57,44,122,116,129,132,138,131,124,110,186,174,185,145,145,118,133,112,195,180,250,252,237,110,378,95,93,93,217,217,701,694,662,633]} 1. e4 {[%emt 0:00:07]} c5 {[%emt 0:00:07]} 2. Nc3 {[%emt 0:00:02]} d6 {[%emt 0:00:12]} 3. f4 {[%emt 0:00:03]} g6 {[%emt 0:00:02]} 4. Nf3 {[%emt 0:00:04]} Bg7 {[%emt 0:00:02]} 5. Bc4 {[%emt 0:00:03]} Nc6 {[%emt 0:00:06]} 6. O-O {[%emt 0:00:05]} e6 {[%emt 0:00:18]} 7. d4 {B23: Closed Sicilian: Lines without g3.} cxd4 {[%emt 0:00:08]} 8. Nb5 {[%emt 0:00:06]} a6 {[%emt 0:01:47] Against e5} 9. Nbxd4 {[%emt 0:00:04] The position is equal.} Nxd4 {[%emt 0:01:25]} 10. Nxd4 {[%emt 0:00:03]} Nf6 {[%emt 0:00:05]} 11. f5 {[%emt 0:00:08][%cal Rf5e6]} gxf5 {[%emt 0:00:51]} (11... e5 $5 12. Bg5 (12. fxg6 hxg6 13. Bg5 O-O $11) 12... O-O $11) 12. exf5 {[%emt 0:00:03] [#]} d5 $146 {[%emt 0:01:23]} (12... e5 {is interesting.} 13. Nf3 Qc7 14. Bb3 Bd7) ({Predecessor:} 12... e5 13. Nf3 {0-1 (13) Lazov,T (2350)-Nevednichy,V (2472) Skopje 2022}) 13. Bb3 {[%emt 0:03:32]} e5 {[%emt 0:03:08]} 14. Nf3 Bxf5 15. Nxe5 {[%emt 0:03:01]} (15. Bg5 {keeps more tension.} Be6 16. Nxe5 Qc7 17. Nd3) 15... Be6 {[%emt 0:04:11]} 16. Be3 {[%emt 0:02:41]} O-O 17. Kh1 {[%emt 0:01:12] White is much more active. The black rooks are badly placed.} (17. c3 $16) 17... Ne4 $14 {[%emt 0:01:13]} 18. Qh5 {[%emt 0:00:36]} f5 {[%emt 0:00:14]} 19. Nd3 {[%emt 0:00:16]} Qe8 {[%emt 0:02:09]} 20. Qxe8 {[%emt 0:02:40]} Raxe8 {[%emt 0:00:01]} 21. Nf4 {[%emt 0:02:18][%cal Of4e6] [#] Prevents d4. aiming for Nxe6!} (21. Nc5 $5 {[%cal Rc5e6]} Bf7 22. Rxf5 $16) 21... Bf7 {[%emt 0:01:01]} 22. c3 {[%emt 0:00:28]} (22. Nxd5 {seems wilder.} Bxb2 23. Rad1 Nc3 24. Nf6+) 22... Ng3+ {[%emt 0:02:20]} 23. hxg3 {[%emt 0:00:02]} Rxe3 {[%emt 0:00:02]} 24. Nxd5 Re5 {[%emt 0:02:08]} 25. Rad1 {[%emt 0:02:08]} Kh8 {[%emt 0:00:22]} (25... a5 $14) 26. Nf4 $16 {[%emt 0:01:01][%cal Bd5f4,Bf4e6,Be6d8,Bd8f7][%mdl 32]} Bxb3 {[%emt 0:01:48]} 27. axb3 {[%emt 0:00:02]} Rb5 {[%emt 0:00:36]} 28. Ne6 {[%emt 0:00:12]} Rg8 {[%emt 0:00:07]} 29. Rd7 {[%emt 0:00:54]} Rb6 (29... Rxb3 $16 30. Rxf5 Rb6) 30. Nd8 $18 {[%emt 0:01:28][%cal Rd8f7]} Bf6 {[%emt 0:01:30]} 31. Nf7+ {[%emt 0:00:56]} Kg7 {[%emt 0:00:01]} 32. Rxf5 {[%emt 0:01:00]} Kg6 {[%emt 0:00:02]} 33. Rf4 {[%emt 0:00:01] Black must now prevent Rg4+.} h5 {[%emt 0:00:08] [#] Against Rg4+} (33... Re8 $16 {keeps fighting.}) 34. g4 $1 {[%emt 0:00:43]} Rg7 {[%emt 0:00:05]} (34... h4 $142 35. g5 Rf8 36. gxf6 (36. Rxf6+ Rxf6 37. gxf6 Rxf7 $18) 36... Rxf7 37. Rxf7 Kxf7) 35. gxh5+ Kxh5 {[%emt 0:00:01]} 36. Rd6 {[%emt 0:01:06]} (36. Rf3 $18 {and White stays clearly on top.}) 36... Bg5 $2 {[%emt 0:00:21][%mdl 8192]} (36... Rxd6 $16 37. Nxd6 Bg5) 37. Rf3 $2 {[%emt 0:00:33]} ({Less strong is} 37. Rxb6 Bxf4 38. Rxb7 Rg8 $18) (37. Rd5 $18 {and the rest is easy.}) 37... Rxd6 $16 {[%emt 0:00:07]} 38. Nxd6 {[%emt 0:00:01]} Kg4 {[%emt 0:00:04]} (38... Re7 $16) 39. Ne4 $18 {[%emt 0:00:03]} Bf4 $2 {[%emt 0:00:03]} (39... Re7) 40. Nf2+ {[%emt 0:00:04]} Kf5 {[%emt 0:00:08]} 41. Nh3 {[%emt 0:00:03] Weighted Error Value: White=0.25 (precise) /Black=0.30} 1-0

[Event "1st Kallai Gabor Memorial 2022"]
[Site "Budapest"]
[Date "2022.11.30"]
[Round "9.3"]
[White "Gaal, Zsoka"]
[Black "Berkes, Ferenc"]
[Result "0-1"]
[ECO "A04"]
[WhiteElo "2286"]
[BlackElo "2643"]
[Annotator "TA"]
[PlyCount "102"]
[EventDate "2022.11.28"]
[EventType "tourn"]
[EventCountry "HUN"]
[SourceTitle "playchess.com"]
[Source "ChessBase"]
[SourceQuality "1"]
[TimeControl "1500+5"]

{[%evp 21,102,36,43,42,34,33,40,35,65,33,61,36,43,30,35,17,18,12,37,20,27,0,0,0,36,15,51,46,81,85,72,75,86,-35,-35,-136,-143,-145,-132,-150,-150,-136,-145,-139,-130,-220,-222,-272,-264,-286,-278,-348,-333,-359,-299,-360,-341,-356,-345,-336,-322,-261,-267,-354,-393,-400,-403,-381,-330,-685,-634,-637,-621,-789,-777,-1984,-1848,-1833,-1746,-2007,-1993,-1646,-1507]} 1. Nf3 {[%emt 0:00:06]} d6 {[%emt 0:00:07]} 2. d4 {[%emt 0:00:02]} Nf6 {[%emt 0:00:02]} 3. c4 {[%emt 0:00:02]} Nbd7 {[%emt 0:00:02]} 4. g3 {[%emt 0:00:03]} e5 {[%emt 0:00:03]} 5. Bg2 {[%emt 0:00:02]} c6 {[%emt 0:00:09]} 6. Nc3 {[%emt 0:00:18]} Be7 {[%emt 0:00:17]} 7. O-O {[%emt 0:00:08]} O-O {[%emt 0:00:03]} 8. e4 {[%emt 0:00:11]} Re8 {[%emt 0:00:17]} 9. h3 {[%emt 0:00:13]} a6 {[%emt 0:00:05]} 10. a4 {[%emt 0:01:09]} a5 {[%emt 0:00:28]} 11. Be3 {[%emt 0:00:09]} exd4 {[%emt 0:00:03]} 12. Nxd4 {[%emt 0:00:12] A55: Old Indian Defence with Nf3 and e4.} (12. Qxd4 Nc5 $11) 12... Bf8 {[%emt 0:00:02]} 13. Qc2 {[%emt 0:00:50]} Nc5 {[%emt 0:00:17][%cal Bd7c5,Bc5a6,Ba6b4][%mdl 32]} 14. Rad1 {[%emt 0:00:46][%cal Od4c6] White is slightly better.} Na6 $5 {[%emt 0:01:13][%mdl 4] Leaves trodden paths.} 15. Qb1 {[%emt 0:01:11]} Nb4 {[%emt 0:00:09]} 16. Rfe1 {[%emt 0:00:10]} Nd7 {[%emt 0:01:10]} 17. f4 {[%emt 0:02:00]} Qc7 {[%emt 0:00:40]} 18. Kh2 {[%emt 0:01:58]} Nc5 {[%emt 0:00:03] [#]} 19. b3 $146 {[%emt 0:02:43]} ({Predecessor:} 19. g4 Bd7 20. Kh1 Rad8 21. Re2 Bc8 22. b3 Qb8 23. Red2 b6 24. Nde2 Bb7 25. Bf2 {0-1 (44) Partos,C (2343)-Merkel,M (2193) Baden 2010}) 19... g6 {[%emt 0:00:20]} 20. Bf2 {[%emt 0:00:40]} Bd7 {[%emt 0:01:47]} 21. Na2 {[%emt 0:01:08]} Nxa2 {[%emt 0:00:55]} 22. Qxa2 {[%emt 0:00:01]} Bg7 {[%emt 0:00:11]} 23. Qc2 {[%emt 0:00:04]} Qb6 {[%emt 0:02:43]} 24. Nf3 {[%emt 0:01:33]} Qxb3 {[%emt 0:00:22]} 25. Qxb3 {[%emt 0:00:15]} Nxb3 {[%emt 0:00:01]} 26. Rd3 {[%emt 0:01:39]} ({Reject} 26. Rxd6 Be6 $11) 26... Na1 {[%emt 0:00:02]} 27. Rc1 {[%emt 0:01:57]} ({White should play} 27. Rxd6 $16 Bc8 28. Red1) 27... Rxe4 $15 {[%emt 0:00:52]} 28. Nd4 {[%emt 0:01:44] [#] Against Re2. Black continues to play with concentration.} (28. Rxd6 $15 Bf5 29. g4 (29. Nd4 Rxd4 30. Bxd4 Bxd4 $17)) 28... Rxd4 $1 $17 {[%emt 0:00:51]} 29. Bxd4 {[%emt 0:00:49]} Bxd4 {[%emt 0:00:02]} 30. Rxd4 {[%emt 0:03:14]} Nb3 {[%emt 0:00:02][%csl LRc1,LRd4]} 31. Rxd6 {[%emt 0:00:08]} Nxc1 {[%emt 0:00:02]} 32. Rxd7 {[%emt 0:00:01][%mdl 4096] Endgame [#] KRB-KRN} Rb8 {[%emt 0:00:04]} 33. Rd1 {[%emt 0:00:51]} (33. Rd2 $17) 33... Nb3 $19 {[%emt 0:01:19]} 34. Rb1 {[%emt 0:00:03]} Nd2 {[%emt 0:00:04][%csl LRb1,LRc4]} 35. Rc1 {[%emt 0:00:08]} Rd8 {[%emt 0:00:15]} 36. Rd1 {[%emt 0:00:39]} Rd4 {[%emt 0:00:37] Prevents Bd5.} 37. Kg1 {[%emt 0:00:16]} Nb3 {[%emt 0:00:02]} 38. Rxd4 {[%emt 0:00:23]} Nxd4 {[%emt 0:00:02] KB-KN} 39. Kf2 {[%emt 0:00:03]} Kf8 {[%emt 0:00:14]} 40. Be4 {[%emt 0:00:11]} Ke7 {[%emt 0:00:02] Hoping for ...Kd6.} 41. Ke3 {[%emt 0:00:01]} Ne6 {[%emt 0:00:16]} 42. f5 {[%emt 0:00:13]} Ng5 {[%emt 0:00:55]} 43. fxg6 {[%emt 0:00:01]} fxg6 {[%emt 0:00:04] ...Nxe4 is the strong threat.} (43... Nxh3 $2 44. gxh7 Ng5 45. h8=Q $18) ({Weaker is} 43... hxg6 44. Bg2 $17) 44. Bg2 {[%emt 0:00:07]} Kd6 {[%emt 0:00:05] Threatens to win with ...Kc5.} 45. Kd4 $2 {[%emt 0:00:10]} (45. h4 Ne6 46. Bf3) 45... Ne6+ {[%emt 0:00:03] Black is clearly winning.} 46. Ke3 {[%emt 0:00:14]} Nc5 {[%emt 0:00:03]} 47. h4 {[%emt 0:00:03]} Ke5 {[%emt 0:00:03]} 48. h5 {[%emt 0:00:05]} gxh5 {[%emt 0:00:16]} 49. Bf3 {[%emt 0:00:03]} Nxa4 {[%emt 0:00:11]} 50. Bxh5 {[%emt 0:00:04]} Nc5 {[%emt 0:00:14] aiming for ...a4.} 51. Bd1 {[%emt 0:00:03]} a4 {Weighted Error Value: White=0.58/Black=0.07 (flawless)} 0-1

[Event "1st Kallai Gabor Memorial 2022"]
[Site "Budapest"]
[Date "2022.11.30"]
[Round "9.4"]
[White "Beliavsky, Alexander G"]
[Black "Ruck, Robert"]
[Result "1/2-1/2"]
[ECO "D91"]
[WhiteElo "2487"]
[BlackElo "2537"]
[Annotator "TA"]
[PlyCount "89"]
[EventDate "2022.11.28"]
[EventType "tourn"]
[EventCountry "HUN"]
[SourceTitle "playchess.com"]
[Source "ChessBase"]
[SourceQuality "1"]
[TimeControl "1500+5"]

{[%evp 23,89,-5,-2,-6,-6,-16,-10,-12,-14,-18,0,0,0,0,0,0,14,14,16,8,7,8,4,-9,0,0,0,0,0,0,0,0,0,0,0,0,0,0,0,0,0,0,0,0,0,0,0,0,0,0,0,0,0,0,0,0,0,0,0,-14,0,0,0,-14,0,0,0,-6]} 1. d4 {[%emt 0:00:08]} Nf6 {[%emt 0:00:11]} 2. c4 {[%emt 0:00:03]} g6 {[%emt 0:00:04]} 3. Nc3 {[%emt 0:00:31]} d5 4. Nf3 {[%emt 0:01:39]} Bg7 {[%emt 0:00:05]} 5. Bg5 {[%emt 0:00:01]} Ne4 {[%emt 0:00:19]} 6. Bh4 {[%emt 0:00:08]} Nxc3 {[%emt 0:00:54]} 7. bxc3 {[%emt 0:00:02]} dxc4 {[%emt 0:00:03]} 8. Qa4+ {[%emt 0:01:10]} Qd7 {[%emt 0:04:16]} 9. Qxc4 {[%emt 0:00:08]} b6 {[%emt 0:00:15]} 10. Qb3 Ba6 11. e3 {[%emt 0:04:11]} Bxf1 {[%emt 0:01:53]} 12. Kxf1 {[%emt 0:00:02]} Nc6 {[%emt 0:00:04] The position is equal.} 13. Kg1 {[%emt 0:02:29] [#] D91: Grünfeld: 4 Nf3 Bg7 5 Bg5.} O-O $146 {[%emt 0:01:17]} ({Predecessor:} 13... Na5 14. Qc2 c5 15. Qe4 Rc8 16. h3 f5 17. Qd3 e5 18. Qe2 Qe6 19. Qb5+ Nc6 20. Nxe5 Bxe5 21. dxe5 Qxe5 {0-1 (30) Williams,C-Greenfeld,A (2539) Jersey 2004}) 14. Qa3 Rfe8 {[%emt 0:05:28]} 15. Bg3 {[%emt 0:01:32]} Na5 {[%emt 0:00:25]} 16. h3 {[%emt 0:00:17]} Rac8 {[%emt 0:01:14]} (16... Nc4 {feels hotter.} 17. Qb3 Nd6 18. Ne5 Bxe5 19. Bxe5 c5) 17. Kh2 {[%emt 0:00:05]} c5 {[%emt 0:00:02]} 18. Rhd1 {[%emt 0:00:19]} cxd4 {[%emt 0:03:11]} 19. cxd4 {[%emt 0:00:02]} Qd5 {[%emt 0:00:11]} 20. Rac1 {[%emt 0:00:54]} e6 {[%emt 0:00:24]} 21. Qb2 {[%emt 0:00:51]} Qb7 {[%emt 0:00:32]} 22. Qb5 {[%emt 0:01:02][%cal Oc1c7]} a6 {[%emt 0:02:01]} 23. Qb1 {[%emt 0:01:00]} Nc4 {[%emt 0:00:22]} 24. Nd2 {[%emt 0:02:12]} Nxd2 {[%emt 0:00:24]} 25. Rxd2 {[%emt 0:00:01]} Rxc1 {[%emt 0:00:05]} 26. Qxc1 {[%emt 0:00:03]} Rc8 {[%emt 0:00:01]} 27. Rc2 {[%emt 0:01:06]} Rxc2 {[%emt 0:00:04]} 28. Qxc2 $11 {[%emt 0:00:02][%mdl 4096] Endgame KQB-KQB} h5 {[%emt 0:00:23]} 29. Qc7 {[%emt 0:01:40]} Qxc7 {[%emt 0:00:10]} 30. Bxc7 {[%emt 0:00:01] KB-KB} b5 {[%emt 0:00:03]} 31. Kg1 {[%emt 0:00:07]} Kf8 {[%emt 0:00:09]} 32. Kf1 {[%emt 0:00:00]} Ke7 {[%emt 0:00:01]} 33. Ke2 {[%emt 0:00:01]} Kd7 {[%emt 0:00:05]} 34. Ba5 {[%emt 0:00:57]} e5 {[%emt 0:00:07]} 35. dxe5 {[%emt 0:00:09]} Bxe5 {[%emt 0:00:02]} 36. Kd3 {[%emt 0:00:09]} f5 {[%emt 0:00:44]} 37. e4 {[%emt 0:00:47]} Ke6 {[%emt 0:01:03]} 38. f3 {[%emt 0:00:36]} Bg3 {[%emt 0:00:22]} 39. Kd4 {[%emt 0:00:28]} Bf2+ {[%emt 0:00:01]} 40. Kd3 {[%emt 0:00:01]} Bg3 {[%emt 0:00:04]} 41. Bc3 {[%emt 0:00:25]} Kd6 {[%emt 0:00:18]} 42. Bb4+ {[%emt 0:00:16]} Ke6 {[%emt 0:00:03]} 43. Bc3 {[%emt 0:00:07]} Kd6 {[%emt 0:00:02]} 44. Bb4+ {[%emt 0:00:01]} Ke6 {[%emt 0:00:02]} 45. Bc3 {A balanced but interesting game.   Weighted Error Value: White=0.03 (flawless) /Black=0.03 (flawless)} 1/2-1/2

[Event "1st Kallai Gabor Memorial 2022"]
[Site "Budapest"]
[Date "2022.11.30"]
[Round "9.5"]
[White "Horvath, Csaba"]
[Black "Motylev, Alexander"]
[Result "1/2-1/2"]
[ECO "D45"]
[WhiteElo "2502"]
[BlackElo "2628"]
[Annotator "TA"]
[PlyCount "39"]
[EventDate "2022.11.28"]
[EventType "tourn"]
[EventCountry "HUN"]
[SourceTitle "playchess.com"]
[Source "ChessBase"]
[SourceQuality "1"]
[TimeControl "1500+5"]

{[%evp 18,39,18,13,22,0,0,0,0,0,44,25,64,38,46,38,70,0,0,-6,54,12,20,16]} 1. d4 {[%emt 0:00:08]} d5 {[%emt 0:00:08]} 2. c4 {[%emt 0:00:03]} c6 {[%emt 0:00:09]} 3. Nc3 {[%emt 0:00:18]} Nf6 {[%emt 0:00:05]} 4. e3 {[%emt 0:00:08]} e6 {[%emt 0:00:13][%cal Be7e6,Be6e5][%mdl 32]} 5. Nf3 {[%emt 0:00:04]} Nbd7 6. Qc2 {[%emt 0:00:10]} Bd6 {[%emt 0:00:05]} 7. Bd3 O-O {[%emt 0:00:46]} 8. O-O {[%emt 0:00:08]} dxc4 {[%emt 0:00:09]} 9. Bxc4 {[%emt 0:00:02]} e5 {[%emt 0:00:02]} 10. h3 {[%emt 0:00:11]} Bb8 {D46: Semi-Slav: 5 e3 Nbd7 6 Bd3, Black avoids the Meran.} 11. Rd1 {[%emt 0:03:13] [#] Hoping for dxe5.} Qe7 {[%emt 0:00:39] [#]} 12. e4 $146 {[%emt 0:00:26]} ({Predecessor:} 12. a4 h6 13. b3 Rd8 14. Ba3 Qe8 15. Nh4 Nb6 16. Ng6 Nxc4 17. Ne7+ Kh8 18. bxc4 Bd6 19. Bxd6 Rxd6 {1-0 (46) Kogan,A (2465)-Novikov,I (2590) Cappelle la Grande 1995}) 12... exd4 {[%emt 0:00:53]} 13. Nxd4 {[%emt 0:00:11]} ({But not} 13. Rxd4 Ne5 14. Be2 Nxf3+ 15. Bxf3 Qe5 $17) 13... Ne5 {[%emt 0:00:04] Inhibits f4.} 14. Bf1 {[%emt 0:00:47]} Re8 {[%emt 0:01:30]} 15. Be3 {[%emt 0:04:27]} (15. f4 $5 {[%cal Rf4e5]}) 15... c5 {[%emt 0:07:01]} 16. Nb3 {[%emt 0:02:36]} b6 {[%emt 0:03:44]} 17. Nd2 (17. Bg5 $14) 17... Nc6 18. Nf3 {[%emt 0:04:18]} Nb4 {[%emt 0:02:05]} (18... Nxe4 19. Qxe4 Qxe4 20. Nxe4 Rxe4 21. Bb5 $16) (18... h6 $11) 19. Qd2 {[%emt 0:01:06] Strongly threatening Bb5.} Bb7 {[%emt 0:02:16]} ({Don't play} 19... Nxe4 20. Nxe4 Qxe4 21. Ng5 $16) 20. a3 {Weighted Error Value: White=0.19 (very precise) /Black=0.20 (precise)} 1/2-1/2